bitfinex-derivatives/quotes_BTCF0:USTF0_20250313
["timestamp","ask_amount","ask_price","bid_price","bid_amount"]
[1741836258374,0.00117837,84151.0,84150.0,0.3535168]
[1741836258564,7e-08,84151.0,84150.0,0.3535168]
[1741836258963,7e-08,84151.0,84150.0,0.4043168]
[1741836259687,0.0477,84157.0,84156.0,0.1188483]
[1741836259978,0.1665469,84157.0,84156.0,0.1188483]
[1741836260872,0.1665469,84157.0,84156.0,0.01201184]
[1741836261074,0.1665469,84157.0,84156.0,0.13086014]
[1741836262168,0.1665469,84157.0,84156.0,0.13086959]
[1741836262565,0.1665469,84157.0,84156.0,0.13186959]
[1741836262766,0.1665469,84157.0,84156.0,0.18026959]
[1741836263272,0.1665469,84157.0,84156.0,0.22796959]
[1741836264275,0.1665469,84157.0,84156.0,0.01302129]
[1741836265779,0.1665469,84157.0,84156.0,0.02624998]
[1741836266166,0.1665469,84157.0,84156.0,0.01422869]
[1741836266968,0.1665469,84157.0,84156.0,0.13307699]
[1741836267971,0.1665469,84157.0,84156.0,0.14519019]
[1741836269673,0.1665469,84157.0,84156.0,0.1319615]
[1741836269985,0.1665469,84157.0,84156.0,0.13186946]
[1741836270184,0.1665469,84157.0,84156.0,0.01302116]
[1741836270784,0.1665469,84157.0,84156.0,0.001]
[1741836271682,0.1665469,84157.0,84156.0,0.01416123]
[1741836272481,0.3165469,84157.0,84156.0,0.01416123]
[1741836272790,0.1188638,84145.0,84144.0,0.21211078]
[1741836272978,0.1188638,84145.0,84144.0,0.34309686]
[1741836273669,0.1188638,84145.0,84144.0,0.22423166]
[1741836274074,0.2193638,84145.0,84144.0,0.22423166]
[1741836274277,0.2193638,84145.0,84144.0,0.34309686]
[1741836275281,0.2193638,84145.0,84144.0,0.32233166]
[1741836275682,0.2193638,84145.0,84144.0,0.32233441]
[1741836275882,0.2193638,84145.0,84144.0,0.44119961]
[1741836276090,0.2193638,84145.0,84144.0,0.22908883]
[1741836277380,0.2193638,84145.0,84144.0,0.11022363]
[1741836277577,0.2193638,84145.0,84144.0,0.01212363]
[1741836278671,0.1188751,84137.0,84136.0,0.0982]
[1741836278876,0.1188751,84137.0,84136.0,0.22923072]
[1741836279574,0.2171751,84137.0,84136.0,0.22906932]
[1741836279982,0.2171751,84137.0,84136.0,0.2200765]
[1741836280791,0.2171751,84137.0,84136.0,0.2190765]
[1741836280975,0.2171751,84137.0,84136.0,0.2170765]
[1741836283184,0.2171751,84137.0,84136.0,0.0982]
[1741836284176,0.2171751,84137.0,84136.0,0.2170765]
[1741836284387,0.2171751,84137.0,84136.0,0.0982]
[1741836284981,0.2171751,84137.0,84136.0,0.2170765]
[1741836285588,0.1188751,84137.0,84136.0,0.2170765]
[1741836286292,0.1692751,84137.0,84136.0,0.2170765]
[1741836286675,0.0594326,84145.0,84139.0,0.1188695]
[1741836286882,0.0594326,84145.0,84141.0,0.1188695]
[1741836287290,0.0594326,84145.0,84141.0,0.2788695]
[1741836287487,0.0594259,84154.0,84141.0,0.2788695]
[1741836287792,0.0594313,84146.0,84141.0,0.2788695]
[1741836288181,0.20181617,84148.0,84141.0,0.2788695]
[1741836288384,0.1188615,84147.0,84141.0,0.2788695]
[1741836288594,0.14238627,84148.0,84141.0,0.2788695]
[1741836289784,0.01686853,84142.0,84141.0,0.5188695]
[1741836289988,0.1782759,84157.0,84156.0,0.1188455]
[1741836290175,0.0594237,84157.0,84156.0,0.1188455]
[1741836290781,0.0594237,84157.0,84156.0,0.2190455]
[1741836290977,0.0594237,84157.0,84156.0,0.23108413]
[1741836292891,0.0594237,84157.0,84156.0,0.23208413]
[1741836293080,0.0594237,84157.0,84156.0,0.23208741]
[1741836293995,0.0594237,84157.0,84156.0,0.24409456]
[1741836295497,0.0019614,84159.0,84158.0,0.1188455]
[1741836295678,0.0019614,84159.0,84158.0,0.27088741]
[1741836296083,0.0019614,84159.0,84158.0,0.29099475]
[1741836296284,0.00017826,84159.0,84158.0,0.29099475]
[1741836296692,0.00017826,84159.0,84158.0,0.29199475]
[1741836297188,0.00017826,84159.0,84158.0,0.30550632]
[1741836297595,0.00017826,84159.0,84158.0,0.16550632]
[1741836297988,0.00017826,84159.0,84158.0,0.14539898]
[1741836299094,0.00017826,84159.0,84158.0,0.16543753]
[1741836300497,0.00017826,84159.0,84158.0,0.13335707]
[1741836300807,0.00017826,84159.0,84158.0,0.16584701]
[1741836301102,0.00017826,84159.0,84158.0,0.14585313]
[1741836301396,0.11902226,84159.0,84158.0,0.14585313]
[1741836301603,0.00017826,84159.0,84158.0,0.14585313]
[1741836301806,0.11902226,84159.0,84158.0,0.14585313]
[1741836301998,0.00017826,84159.0,84158.0,0.16578359]
[1741836302192,0.11902226,84159.0,84158.0,0.16578359]
[1741836303289,0.11902226,84159.0,84158.0,0.04693809]
[1741836303793,0.22032226,84159.0,84158.0,0.16585446]
[1741836304107,0.22032226,84159.0,84158.0,0.24655599]
[1741836305784,0.22032226,84159.0,84158.0,0.24649665]
[1741836305991,0.10147826,84159.0,84158.0,0.26657988]
[1741836306196,0.22032226,84159.0,84158.0,0.26657988]
[1741836306792,0.22032226,84159.0,84158.0,0.14773438]
[1741836307197,0.22032226,84159.0,84158.0,0.26657988]
[1741836307606,0.22032226,84159.0,84158.0,0.26656212]
[1741836308008,0.22032226,84159.0,84158.0,0.24655894]
[1741836309601,0.22032226,84159.0,84158.0,0.24647678]
[1741836310302,0.04997826,84159.0,84158.0,0.29647678]
[1741836310495,0.00017826,84159.0,84158.0,0.29647678]
[1741836310897,0.00017826,84159.0,84158.0,0.56647678]
[1741836311313,0.14211103,84178.0,84177.0,0.1188186]
[1741836311518,0.08898563,84178.0,84177.0,0.79431831]
[1741836311812,0.17775493,84181.0,84180.0,0.1188144]
[1741836312107,0.17775493,84181.0,84180.0,0.46123411]
[1741836312314,0.17775493,84181.0,84180.0,0.59782568]
[1741836312508,0.17775493,84181.0,84180.0,0.64922568]
[1741836312696,0.17775493,84181.0,84180.0,0.69762568]
[1741836313099,0.17775493,84181.0,84180.0,0.71755894]
[1741836314307,0.17775493,84181.0,84180.0,0.71855894]
[1741836315207,0.14379353,84181.0,84180.0,0.71855894]
[1741836315398,0.14379353,84181.0,84180.0,0.83735129]
[1741836315605,0.13524981,84181.0,84180.0,0.83735129]
[1741836316110,0.13524981,84181.0,84180.0,0.38855894]
[1741836316515,0.118811,84183.0,84180.0,0.26974454]
[1741836316711,0.0984,84182.0,84181.0,0.03235297]
[1741836317010,0.0984,84182.0,84181.0,0.26087754]
[1741836317714,0.2172116,84182.0,84181.0,0.26087754]
[1741836318310,0.0984,84182.0,84181.0,0.26087754]
[1741836318519,0.00011832,84189.0,84181.0,0.32147054]
[1741836318707,0.00011832,84189.0,84188.0,0.1188031]
[1741836318917,0.00011832,84189.0,84188.0,0.13122281]
[1741836319113,0.11892002,84189.0,84188.0,0.13122281]
[1741836319616,0.11892002,84189.0,84188.0,0.14473438]
[1741836319810,0.00011832,84189.0,84188.0,0.19473438]
[1741836320118,0.00011832,84189.0,84188.0,0.21482515]
[1741836320311,0.00011832,84189.0,84188.0,0.2149944]
[1741836320499,0.00011832,84189.0,84188.0,0.22688147]
[1741836321311,0.00011832,84189.0,84188.0,0.34992147]
[1741836322317,0.00011832,84189.0,84188.0,0.29992147]
[1741836322517,0.11892002,84189.0,84188.0,0.17688147]
[1741836322819,0.11892002,84189.0,84188.0,0.16112769]
[1741836323405,0.21802002,84189.0,84188.0,0.03805803]
[1741836323607,0.21802002,84189.0,84188.0,0.02617096]
[1741836323809,0.21802002,84189.0,84188.0,0.01351157]
[1741836324011,0.2297683,84189.0,84188.0,0.01351157]
[1741836324218,0.21802002,84189.0,84188.0,0.01351157]
[1741836324414,0.1188102,84184.0,84183.0,0.1188099]
[1741836324610,0.1188102,84184.0,84183.0,0.13163249]
[1741836324914,0.1188102,84183.0,84182.0,0.1188103]
[1741836325417,0.118813,84181.0,84180.0,0.1188141]
[1741836325610,0.118813,84181.0,84180.0,0.13165074]
[1741836325811,0.118813,84181.0,84180.0,0.14533754]
[1741836327121,0.118813,84181.0,84180.0,0.15733819]
[1741836327342,0.118813,84181.0,84180.0,0.03852409]
[1741836328206,0.118813,84181.0,84180.0,0.0136868]
[1741836328408,0.1188243,84173.0,84161.0,0.57081078]
[1741836328609,0.1188243,84173.0,84162.0,0.02040629]
[1741836328809,0.1188243,84173.0,84162.0,0.1188388]
[1741836329018,0.1188243,84173.0,84163.0,0.118838]
[1741836329219,0.2162243,84173.0,84162.0,0.1188395]
[1741836329417,0.2162243,84173.0,84161.0,0.21211078]
[1741836329618,0.2152243,84173.0,84161.0,0.21211078]
[1741836330120,0.2152243,84173.0,84161.0,0.33095178]
[1741836330824,0.22709179,84173.0,84163.0,0.01211041]
[1741836331429,0.22709179,84173.0,84172.0,6e-08]
[1741836331430,0.37809179,84173.0,84172.0,6e-08]
[1741836335820,0.50117179,84173.0,84172.0,6e-08]
[1741836341531,0.64254749,84173.0,84115.0,0.0563]
[1741836341724,0.64254749,84173.0,84136.0,0.12308]
[1741836341725,0.1188723,84139.0,84136.0,0.12308]
[1741836341925,0.0594317,84146.0,84145.0,0.1188638]
[1741836342330,0.12308,84158.0,84145.0,0.06]
[1741836342519,0.1782948,84148.0,84147.0,0.1188559]
[1741836342935,0.1782948,84148.0,84147.0,0.1661559]
[1741836344228,0.1782948,84148.0,84147.0,0.0958]
[1741836344836,0.1812948,84148.0,84147.0,0.0958]
[1741836345022,0.1812948,84148.0,84147.0,0.1456]
[1741836345538,0.1782948,84148.0,84147.0,0.1456]
[1741836345735,0.1832948,84148.0,84147.0,0.1456]
[1741836347035,0.1852948,84148.0,84147.0,0.0958]
[1741836347422,0.18040781,84148.0,84147.0,0.0958]
[1741836347653,0.18540781,84148.0,84147.0,0.0958]
[1741836348035,0.28110781,84148.0,84147.0,0.0958]
[1741836348220,0.0594317,84146.0,84138.0,0.0017827]
[1741836348420,0.1188723,84139.0,84138.0,0.0017827]
[1741836348633,0.118885,84130.0,84129.0,0.0959]
[1741836348839,0.11898353,84130.0,84129.0,0.0462]
[1741836349423,0.11898353,84130.0,84129.0,0.1650864]
[1741836349833,9.853e-05,84130.0,84129.0,0.2144864]
[1741836350022,0.00017826,84138.0,84137.0,0.1188751]
[1741836350220,0.00017826,84138.0,84137.0,0.53398756]
[1741836350431,0.006,84148.0,84147.0,0.118861]
[1741836350632,0.0504,84165.0,84147.0,0.13511246]
[1741836350942,0.1782863,84152.0,84151.0,0.0594266]
[1741836351128,0.17836087,84152.0,84151.0,0.0594266]
[1741836351323,0.17836087,84152.0,84151.0,0.01193744]
[1741836351324,0.17835657,84152.0,84151.0,0.01193744]
[1741836351525,0.1188568,84150.0,84149.0,0.0495]
[1741836352340,0.1178568,84150.0,84149.0,0.0495]
[1741836354238,0.1248568,84150.0,84149.0,0.0505]
[1741836354843,0.1178568,84150.0,84149.0,0.06265402]
[1741836355044,0.1248568,84150.0,84149.0,0.06365402]
[1741836356057,0.1248568,84150.0,84149.0,0.0505]
[1741836357031,0.1188652,84144.0,84143.0,0.00017826]
[1741836357233,0.11893977,84144.0,84143.0,0.00017826]
[1741836357638,0.11793977,84144.0,84143.0,0.00017826]
[1741836357825,0.11793977,84144.0,84143.0,0.01335051]
[1741836358031,0.1178652,84144.0,84143.0,0.01335051]
[1741836358434,0.11793977,84144.0,84143.0,0.01335051]
[1741836358636,0.17503977,84144.0,84143.0,0.02564542]
[1741836359951,0.17503977,84144.0,84143.0,0.01247317]
[1741836360439,0.17503977,84144.0,84143.0,0.01243104]
[1741836360943,0.1188907,84126.0,84125.0,0.27155568]
[1741836361147,0.11896527,84126.0,84125.0,0.28371653]
[1741836361842,7.457e-05,84126.0,84125.0,0.28371653]
[1741836362041,7.457e-05,84126.0,84125.0,0.30899889]
[1741836362243,0.11896527,84126.0,84125.0,0.48057889]
[1741836362446,0.11896527,84126.0,84125.0,0.48083631]
[1741836363145,7.457e-05,84126.0,84125.0,0.48083631]
[1741836363856,0.11896527,84126.0,84125.0,0.48383631]
[1741836364157,0.11896527,84126.0,84125.0,0.26972553]
[1741836364355,0.11896527,84126.0,84125.0,0.27072553]
[1741836364535,0.11896527,84126.0,84125.0,0.26972553]
[1741836364734,0.11896527,84126.0,84125.0,0.21028063]
[1741836365334,0.11896527,84126.0,84125.0,0.07522066]
[1741836365847,0.1308282,84126.0,84125.0,0.06280239]
[1741836366046,0.13075363,84126.0,84125.0,9e-08]
[1741836366440,0.178347,84121.0,84120.0,0.02043508]
[1741836366640,0.178347,84121.0,84120.0,8e-08]
[1741836367042,0.1189034,84117.0,84116.0,0.18203737]
[1741836367468,0.1189034,84117.0,84116.0,0.13049507]
[1741836367790,0.2174034,84117.0,84116.0,0.13049507]
[1741836368353,0.2234034,84117.0,84116.0,0.13049507]
[1741836368743,0.2726034,84117.0,84116.0,0.13049507]
[1741836369350,0.2726034,84117.0,84116.0,0.06381427]
[1741836369544,0.1189105,84112.0,84111.0,0.35499592]
[1741836369741,0.11898507,84112.0,84111.0,0.35499592]
[1741836370356,0.21698507,84112.0,84111.0,0.35499592]
[1741836370558,0.1189133,84110.0,84109.0,0.0479]
[1741836371242,0.10207457,84112.0,84108.0,0.00017826]
[1741836371443,0.1666147,84109.0,84108.0,0.00017826]
[1741836371743,0.1666147,84109.0,84101.0,0.0465]
[1741836371744,0.1189246,84102.0,84101.0,0.0465]
[1741836371945,0.1189246,84102.0,84101.0,0.05872895]
[1741836372142,0.01190534,84102.0,84089.0,0.01204403]
[1741836372346,0.1189401,84091.0,84090.0,0.0465]
[1741836373343,0.26166028,84091.0,84090.0,0.0465]
[1741836373752,0.14272018,84091.0,84082.0,0.00017837]
[1741836373957,0.1426,84091.0,84083.0,0.01239756]
[1741836374156,0.1189515,84083.0,84082.0,0.00017837]
[1741836374358,0.11905557,84083.0,84082.0,0.00017837]
[1741836374860,0.11905557,84083.0,84082.0,0.00117837]
[1741836375052,0.1189515,84083.0,84082.0,0.00117837]
[1741836375359,0.1648515,84083.0,84082.0,0.00117837]
[1741836375561,0.2115515,84083.0,84082.0,0.00117837]
[1741836375950,0.0926,84083.0,84070.0,0.00178414]
[1741836376147,0.0926,84083.0,84060.0,0.01405767]
[1741836376148,0.0584825,84074.0,84061.0,0.0481]
[1741836376347,0.1189727,84068.0,84061.0,0.0481]
[1741836376553,0.11910241,84068.0,84062.0,0.05]
[1741836376766,0.11910241,84068.0,84066.0,0.1189754]
[1741836376967,0.11910241,84068.0,84062.0,0.1094905]
[1741836377146,0.21320241,84068.0,84062.0,0.1094905]
[1741836377350,0.21320241,84068.0,84062.0,0.05]
[1741836377963,0.21320241,84068.0,84067.0,0.01723543]
[1741836378663,0.21220241,84068.0,84067.0,0.01723543]
[1741836379461,0.21220241,84068.0,84067.0,0.01823543]
[1741836381264,0.2120727,84068.0,84067.0,0.01823543]
[1741836383368,0.21222481,84068.0,84067.0,0.01823543]
[1741836383558,0.2120727,84068.0,84067.0,0.01823543]
[1741836385763,0.21221677,84068.0,84067.0,0.01823543]
[1741836386151,0.21221677,84068.0,84067.0,0.11613543]
[1741836386969,0.11811677,84068.0,84067.0,0.23510953]
[1741836387171,0.00014407,84068.0,84067.0,0.23510953]
[1741836387483,0.00014407,84068.0,84067.0,0.29510953]
[1741836387662,0.00014407,84068.0,84067.0,0.23510953]
[1741836388059,0.11911677,84068.0,84067.0,0.23510953]
[1741836388267,0.00014407,84068.0,84067.0,0.23510953]
[1741836388769,0.11911677,84068.0,84067.0,0.23510953]
[1741836389157,0.11911677,84068.0,84067.0,0.11613543]
[1741836389359,0.11911677,84068.0,84067.0,0.06863543]
[1741836389764,0.16651677,84068.0,84067.0,0.18760953]
[1741836389964,0.21651677,84068.0,84067.0,0.18760953]
[1741836390164,0.21651677,84068.0,84067.0,0.06863543]
[1741836390367,0.21651677,84068.0,84067.0,0.18760953]
[1741836390562,0.21651677,84068.0,84067.0,0.06863543]
[1741836390776,0.21651677,84068.0,84067.0,3e-08]
[1741836390956,0.118984,84060.0,84059.0,0.00017837]
[1741836391270,0.25436003,84060.0,84059.0,0.00017837]
[1741836392066,0.34856003,84060.0,84059.0,0.00017837]
[1741836392376,0.1189911,84055.0,84054.0,6e-08]
[1741836392762,0.1169911,84055.0,84054.0,6e-08]
[1741836393178,0.2108911,84055.0,84054.0,6e-08]
[1741836393676,0.21099438,84055.0,84054.0,6e-08]
[1741836393856,0.2108911,84055.0,84054.0,6e-08]
[1741836394975,0.2118911,84055.0,84054.0,6e-08]
[1741836395477,0.2128911,84055.0,84054.0,6e-08]
[1741836396075,0.2148911,84055.0,84054.0,6e-08]
[1741836396272,0.2168911,84055.0,84054.0,6e-08]
[1741836400164,0.22985984,84055.0,84054.0,6e-08]
[1741836400566,0.2168911,84055.0,84054.0,6e-08]
[1741836401167,0.22977878,84055.0,84054.0,6e-08]
[1741836402860,0.22988338,84055.0,84054.0,6e-08]
[1741836403072,0.22977878,84055.0,84054.0,6e-08]
[1741836404286,0.22988848,84055.0,84054.0,6e-08]
[1741836404465,0.22990887,84055.0,84054.0,6e-08]
[1741836404661,0.22977878,84055.0,84054.0,6e-08]
[1741836405570,0.35317878,84055.0,84054.0,6e-08]
[1741836407274,0.13587878,84055.0,84054.0,6e-08]
[1741836407477,0.12308872,84055.0,84054.0,0.11899256]
[1741836407671,0.12308872,84055.0,84054.0,6e-08]
[1741836408176,0.12308872,84055.0,84054.0,0.09450006]
[1741836408589,0.12308872,84055.0,84054.0,0.10636122]
[1741836409580,0.12308872,84055.0,84054.0,0.09450006]
[1741836414170,0.00609762,84055.0,84054.0,0.21349256]
[1741836414580,0.10669614,84062.0,84061.0,0.1189826]
[1741836414771,0.22567734,84062.0,84061.0,0.1189826]
[1741836415167,0.1189854,84059.0,84058.0,0.21844]
[1741836415378,0.1189854,84059.0,84058.0,0.17244]
[1741836415581,0.11905003,84059.0,84058.0,0.17244]
[1741836415781,0.11905003,84059.0,84058.0,0.0492]
[1741836416181,0.11805003,84059.0,84058.0,0.0492]
[1741836416378,0.2148854,84059.0,84058.0,0.0492]
[1741836416581,0.1189911,84055.0,84047.0,0.01548066]
[1741836417283,0.2151911,84055.0,84047.0,0.01548066]
[1741836418388,0.22832927,84055.0,84047.0,0.01548066]
[1741836418572,0.23026464,84055.0,84047.0,0.01548066]
[1741836419087,0.23226464,84055.0,84047.0,0.01548066]
[1741836419581,0.23226464,84055.0,84048.0,0.0495]
[1741836419787,0.24416632,84055.0,84048.0,0.0495]
[1741836419982,0.119001,84048.0,84047.0,2e-08]
[1741836422274,0.119001,84048.0,84047.0,0.00100002]
[1741836422985,0.119001,84048.0,84047.0,2e-08]
[1741836423881,0.11906563,84048.0,84047.0,2e-08]
[1741836424089,0.119001,84048.0,84047.0,2e-08]
[1741836424276,0.11906563,84048.0,84047.0,2e-08]
[1741836424587,0.119001,84048.0,84047.0,2e-08]
[1741836425286,0.11906563,84048.0,84047.0,2e-08]
[1741836425480,0.119001,84048.0,84047.0,2e-08]
[1741836426789,0.35404344,84048.0,84047.0,2e-08]
[1741836427779,0.35410807,84048.0,84047.0,2e-08]
[1741836427980,0.35404344,84048.0,84047.0,2e-08]
[1741836428389,0.35410807,84048.0,84047.0,2e-08]
[1741836428585,0.35404344,84048.0,84047.0,2e-08]
[1741836428991,0.1190095,84042.0,84041.0,0.01507267]
[1741836429302,0.1190095,84042.0,84041.0,7e-08]
[1741836429779,0.21867413,84042.0,84041.0,7e-08]
[1741836429981,0.2186095,84042.0,84041.0,7e-08]
[1741836430179,0.1190194,84035.0,84034.0,0.0151964]
[1741836430389,0.1190194,84035.0,84028.0,0.01450813]
[1741836430390,0.1190279,84029.0,84028.0,0.01450813]
[1741836430879,6.463e-05,84029.0,84028.0,0.01450813]
[1741836431105,0.11909253,84029.0,84028.0,0.13353743]
[1741836431488,6.463e-05,84029.0,84028.0,0.24223743]
[1741836431685,6.463e-05,84029.0,84028.0,0.18223743]
[1741836431891,0.11909253,84029.0,84028.0,0.18223743]
[1741836432091,0.11909253,84029.0,84028.0,0.06320813]
[1741836432285,0.11909253,84029.0,84028.0,0.11610813]
[1741836432596,0.11909253,84029.0,84028.0,0.23513743]
[1741836432783,6.463e-05,84029.0,84028.0,0.23513743]
[1741836432982,6.463e-05,84029.0,84028.0,0.24727817]
[1741836432983,0.11909253,84029.0,84028.0,0.24727817]
[1741836433896,0.11909253,84029.0,84028.0,0.23513743]
[1741836434279,0.11909253,84029.0,84028.0,0.11610813]
[1741836435293,0.11909253,84029.0,84028.0,0.23513743]
[1741836435880,0.11909253,84029.0,84028.0,0.24720215]
[1741836437100,0.11909253,84029.0,84028.0,0.12817285]
[1741836437997,0.21719253,84029.0,84028.0,0.12817285]
[1741836439489,0.21719253,84029.0,84028.0,0.24720215]
[1741836439490,0.16809253,84029.0,84028.0,0.24720215]
[1741836439700,6.463e-05,84029.0,84028.0,0.31720215]
[1741836439887,6.463e-05,84029.0,84028.0,0.30720215]
[1741836440098,0.11909253,84029.0,84028.0,0.24720215]
[1741836440685,0.11909253,84029.0,84028.0,0.12817285]
[1741836440999,0.16679253,84029.0,84028.0,0.12817285]
[1741836441583,0.16679253,84029.0,84028.0,0.07827285]
[1741836442187,0.1667279,84029.0,84028.0,0.01750813]
[1741836442587,0.16679253,84029.0,84028.0,0.01750813]
[1741836443111,0.1667279,84029.0,84028.0,0.01750813]
[1741836443394,0.16679253,84029.0,84028.0,0.01750813]
[1741836443597,0.1667279,84029.0,84028.0,0.01750813]
[1741836444784,0.17846125,84029.0,84028.0,0.01750813]
[1741836446801,0.20943335,84029.0,84017.0,0.28464011]
[1741836447003,0.1190435,84018.0,84017.0,1e-08]
[1741836447302,0.1190435,84018.0,84015.0,5e-08]
[1741836447303,0.1190463,84016.0,84015.0,5e-08]
[1741836447936,0.1190463,84016.0,84012.0,0.35499592]
[1741836447937,0.2475,84016.0,84007.0,0.42547477]
[1741836448142,0.2475,84016.0,84000.0,0.0663688]
[1741836448143,0.1190676,84001.0,84000.0,0.0663688]
[1741836448301,0.2426676,84001.0,84000.0,0.0663688]
[1741836449706,0.2416676,84001.0,84000.0,0.0663688]
[1741836450198,0.2436676,84001.0,84000.0,0.0663688]
[1741836450403,0.2554031,84001.0,84000.0,0.0663688]
[1741836450605,0.25546773,84001.0,84000.0,0.0663688]
[1741836450805,0.24373223,84001.0,84000.0,0.0663688]
[1741836451692,0.3396676,84001.0,84000.0,0.0663688]
[1741836452889,0.3396676,84001.0,83996.0,0.0485]
[1741836453095,0.1190733,83997.0,83996.0,0.0485]
[1741836453295,0.0595356,83999.0,83995.0,0.01554439]
[1741836453501,0.0974,83996.0,83990.0,0.0477]
[1741836453704,0.1190818,83991.0,83990.0,0.0477]
[1741836453904,0.11914643,83991.0,83990.0,0.0477]
[1741836454598,0.1190832,83990.0,83976.0,0.13995327]
[1741836454802,0.1677832,83990.0,83978.0,0.0494]
[1741836455002,0.1190931,83983.0,83978.0,0.0494]
[1741836455202,0.11915773,83983.0,83978.0,0.0494]
[1741836455709,0.1191016,83977.0,83976.0,0.01603327]
[1741836456796,0.1690016,83977.0,83976.0,0.01603327]
[1741836457207,0.1690016,83977.0,83976.0,0.01590153]
[1741836457515,0.1191087,83972.0,83971.0,0.0474]
[1741836458500,0.1674087,83972.0,83971.0,0.0474]
[1741836458911,0.1684087,83972.0,83971.0,0.0374]
[1741836459494,0.16847333,83972.0,83971.0,0.0374]
[1741836459801,0.1684087,83972.0,83971.0,0.0374]
[1741836460493,0.16847333,83972.0,83971.0,0.0374]
[1741836460909,0.1684087,83972.0,83971.0,0.0374]
[1741836461807,0.2152087,83972.0,83971.0,0.0374]
[1741836462109,0.2152087,83972.0,83963.0,0.01544347]
[1741836462110,0.1191115,83970.0,83964.0,0.0477]
[1741836462305,0.1191115,83970.0,83963.0,0.01544347]
[1741836462512,0.1191115,83970.0,83964.0,0.0485]
[1741836462813,0.1695115,83970.0,83964.0,0.0485]
[1741836463322,6.463e-05,83970.0,83969.0,0.28470396]
[1741836463621,0.00106463,83970.0,83969.0,0.28470396]
[1741836463807,0.00106463,83970.0,83969.0,0.13470396]
[1741836464025,0.00106463,83970.0,83969.0,0.23120396]
[1741836465116,0.00106463,83970.0,83969.0,0.35120396]
[1741836465309,0.0595474,83982.0,83981.0,0.1190959]
[1741836465713,0.0479,83988.0,83976.0,0.0595509]
[1741836465919,0.1191016,83977.0,83976.0,0.17865]
[1741836468208,0.1191016,83977.0,83976.0,0.0595509]
[1741836468404,0.1191115,83970.0,83969.0,0.01559096]
[1741836468616,0.1191115,83970.0,83969.0,0.14007096]
[1741836468916,0.1191115,83970.0,83969.0,0.01559096]
[1741836469121,0.1191115,83970.0,83969.0,0.13470396]
[1741836470227,0.1201115,83970.0,83969.0,0.13670396]
[1741836470925,0.1201115,83970.0,83969.0,0.01759096]
[1741836471510,0.1201115,83970.0,83969.0,0.13670396]
[1741836471910,0.1201115,83970.0,83969.0,0.01759096]
[1741836472323,0.1695115,83970.0,83969.0,0.01759096]
[1741836472525,0.1695115,83970.0,83969.0,0.13670396]
[1741836473525,0.1201115,83970.0,83969.0,0.13670396]
[1741836474328,0.001,83970.0,83969.0,0.13670396]
[1741836474517,0.001,83970.0,83969.0,0.27670396]
[1741836474827,0.1191087,83973.0,83972.0,0.1191083]
[1741836475027,0.1191087,83973.0,83972.0,0.2382166]
[1741836475327,0.1191087,83973.0,83972.0,0.1191083]
[1741836475723,0.1191036,83976.0,83975.0,0.119103]
[1741836476229,0.1191036,83976.0,83975.0,0.169203]
[1741836477211,0.1201036,83976.0,83975.0,0.171203]
[1741836478427,0.1201036,83976.0,83975.0,0.0521]
[1741836478824,0.1705036,83976.0,83975.0,0.0521]
[1741836479027,0.2180036,83976.0,83975.0,0.0521]
[1741836480028,0.32439012,83976.0,83975.0,0.0521]
[1741836480731,0.10738652,83976.0,83975.0,0.1712044]
[1741836480934,0.22648952,83976.0,83975.0,0.1712044]
[1741836481533,0.10738652,83976.0,83975.0,0.2906044]
[1741836481720,0.10738652,83976.0,83975.0,0.4506044]
[1741836482233,0.10738652,83976.0,83975.0,0.2206044]
[1741836482935,0.22648952,83976.0,83975.0,0.2206044]
[1741836483318,0.22648952,83976.0,83975.0,0.1015]
[1741836483928,0.31968952,83976.0,83975.0,0.1015]
[1741836484239,0.213303,83976.0,83975.0,0.1015]
[1741836484829,0.213303,83976.0,83975.0,0.0521]
[1741836485027,0.213303,83976.0,83975.0,0.002]
[1741836486425,0.213303,83976.0,83975.0,0.1211044]
[1741836486736,0.213303,83976.0,83975.0,0.002]
[1741836487945,0.1191115,83970.0,83969.0,0.01559096]
[1741836488530,0.1191115,83970.0,83963.0,0.06474347]
[1741836488531,0.11912,83964.0,83963.0,0.01544347]
[1741836489430,0.16642,83964.0,83963.0,0.01544347]
[1741836490436,0.11913,83957.0,83950.0,0.22936198]
[1741836490623,0.11913,83957.0,83951.0,0.0976]
[1741836490820,0.11913,83957.0,83950.0,0.22936198]
[1741836491539,0.11913,83957.0,83951.0,0.1660374]
[1741836491839,0.11913,83957.0,83951.0,0.0976]
[1741836492720,0.11913,83957.0,83956.0,0.13483272]
[1741836493138,0.21218248,83965.0,83963.0,0.1191215]
[1741836493573,0.21218248,83965.0,83957.0,0.0495]
[1741836493574,0.1191286,83958.0,83957.0,0.0495]
[1741836493647,0.11913,83957.0,83956.0,0.01570132]
[1741836497844,0.11913,83957.0,83956.0,0.13483272]
[1741836498231,0.16233,83958.0,83957.0,0.11913]
[1741836498428,0.16233,83958.0,83957.0,0.0916]
[1741836498934,0.11913,83957.0,83956.0,0.01570132]
[1741836500534,0.13110158,83957.0,83956.0,0.01570132]
[1741836501328,0.11913,83957.0,83956.0,0.01570132]
[1741836502837,0.13115531,83957.0,83956.0,0.01570132]
[1741836504039,0.13115531,83957.0,83956.0,0.13483272]
[1741836504040,0.11913,83957.0,83956.0,0.13483272]
[1741836504435,0.11913,83957.0,83956.0,0.01570132]
[1741836507444,0.11913,83957.0,83956.0,0.02744047]
[1741836507636,0.11913,83957.0,83956.0,0.01570132]
[1741836508742,0.16323,83957.0,83956.0,0.01570132]
[1741836509136,0.16323,83957.0,83956.0,0.02787154]
[1741836509330,0.16323,83957.0,83956.0,0.01570132]
[1741836509636,0.30513508,83957.0,83956.0,0.01570132]
[1741836511643,0.18600508,83957.0,83950.0,0.01547868]
[1741836511856,0.1191385,83951.0,83950.0,0.01547868]
[1741836512351,0.1191385,83951.0,83950.0,0.13461858]
[1741836514238,0.1191385,83951.0,83950.0,0.01547868]
[1741836518139,0.119147,83945.0,83944.0,0.0445]
[1741836518850,0.206447,83945.0,83944.0,0.0445]
[1741836519051,0.0873,83945.0,83930.0,0.13977674]
[1741836519241,0.1191555,83939.0,83938.0,0.0454]
[1741836519646,0.0873,83940.0,83930.0,0.01589674]
[1741836519847,0.119164,83933.0,83930.0,0.01589674]
[1741836520153,0.0595827,83932.0,83917.0,0.01592035]
[1741836520355,0.1191754,83925.0,83917.0,0.01592035]
[1741836520553,0.1246,83925.0,83917.0,0.01592035]
[1741836520750,0.1191839,83919.0,83918.0,0.42512451]
[1741836521744,0.2072839,83919.0,83918.0,0.42512451]
[1741836522852,0.1191853,83918.0,83917.0,0.01592035]
[1741836523055,0.17782902,83920.0,83919.0,0.1191839]
[1741836523253,0.29701152,83920.0,83919.0,0.1191839]
[1741836523464,0.1191853,83918.0,83917.0,0.01592035]
[1741836523647,0.1191853,83918.0,83917.0,0.02775206]